bitfinex/quotes_BTCUSD_20250513
["timestamp","ask_amount","ask_price","bid_price","bid_amount"]
[1747100695225,0.04122199,102290.0,102280.0,1.22531956]
[1747100695449,0.13943978,102290.0,102280.0,1.14732248]
[1747100695682,0.12966404,102290.0,102280.0,1.14732248]
[1747100695901,0.14043968,102290.0,102280.0,1.14732248]
[1747100696852,0.06177308,102290.0,102280.0,1.14732248]
[1747100697113,0.04292199,102290.0,102280.0,1.15709582]
[1747100697331,0.05269744,102290.0,102280.0,1.15709582]
[1747100697546,0.04292189,102290.0,102280.0,1.15709582]
[1747100697742,0.03314663,102290.0,102280.0,1.48151012]
[1747100697948,0.01684663,102290.0,102280.0,1.48151012]
[1747100698546,0.02662199,102290.0,102280.0,1.22895368]
[1747100698772,0.02662199,102290.0,102280.0,1.48151012]
[1747100699966,0.03639744,102290.0,102280.0,1.48151012]
[1747100700193,0.05189744,102290.0,102280.0,1.38565582]
[1747100700559,0.06167308,102290.0,102280.0,1.38565582]
[1747100700743,0.03234663,102290.0,102280.0,1.38565582]
[1747100701571,0.01684663,102290.0,102280.0,1.38565582]
[1747100703044,0.02662208,102290.0,102280.0,1.13309938]
[1747100703276,0.2868527,102290.0,102280.0,0.67966764]
[1747100703525,0.2868527,102290.0,102280.0,0.90454024]
[1747100703768,0.2868527,102290.0,102280.0,0.92409373]
[1747100704024,0.06277394,102290.0,102280.0,1.1766495]
[1747100704508,0.04322189,102290.0,102280.0,1.1766495]
[1747100704510,0.06277289,102290.0,102280.0,1.1766495]
[1747100704757,0.07254882,102290.0,102280.0,1.1766495]
[1747100705010,0.06277289,102290.0,102280.0,1.2725038]
[1747100705225,0.01684663,102290.0,102280.0,1.1766495]
[1747100705443,0.00114663,102290.0,102280.0,1.1766495]
[1747100706616,0.00114663,102290.0,102280.0,1.19119035]
[1747100706869,0.00014663,102290.0,102280.0,1.19119035]
[1747100707100,0.00014663,102290.0,102280.0,1.28904465]
[1747100707328,0.00014663,102290.0,102280.0,1.19319035]
[1747100707771,0.00992189,102290.0,102280.0,1.19319035]
[1747100707996,0.00014663,102290.0,102280.0,1.19319035]
[1747100708220,0.04062208,102290.0,102280.0,0.69205306]
[1747100708440,0.04062208,102290.0,102280.0,1.3997295]
[1747100708658,0.04062199,102290.0,102280.0,1.3997295]
[1747100708879,0.04062199,102290.0,102280.0,1.7997295]
[1747100709103,0.06017337,102290.0,102280.0,1.29040316]
[1747100709330,0.09551698,102290.0,102280.0,1.53747627]
[1747100709561,0.0699493,102290.0,102280.0,1.13747627]
[1747100709783,0.06017328,102290.0,102280.0,1.39003271]
[1747100710022,0.05039754,102290.0,102280.0,1.39003271]
[1747100710239,0.24592073,102290.0,102280.0,0.4378543]
[1747100710491,0.24592073,102290.0,102280.0,0.002]
[1747100710754,0.0503982,102290.0,102280.0,0.55572928]
[1747100710968,0.06017346,102290.0,102280.0,0.57528239]
[1747100711198,0.06017346,102290.0,102280.0,0.80296239]
[1747100711413,0.06994949,102290.0,102280.0,0.80296239]
[1747100711850,0.09740807,102290.0,102280.0,0.81277289]
[1747100712145,0.28315572,102290.0,102280.0,0.77363239]
[1747100712369,0.27337989,102290.0,102280.0,0.3255343]
[1747100712590,0.24527815,102290.0,102280.0,0.3255343]
[1747100712810,0.24527815,102290.0,102280.0,0.53085293]
[1747100713035,0.24527815,102290.0,102280.0,0.54062982]
[1747100713248,0.24527815,102290.0,102280.0,0.53085293]
[1747100713465,0.04975476,102290.0,102280.0,0.78340937]
[1747100713687,0.0399795,102290.0,102280.0,0.80296248]
[1747100713917,0.0246795,102290.0,102280.0,0.80296248]
[1747100714135,0.03445495,102290.0,102280.0,0.80296248]
[1747100714548,0.0442305,102290.0,102280.0,0.80296248]
[1747100714800,0.05109763,102290.0,102280.0,0.80296248]
[1747100715000,0.02532199,102290.0,102280.0,1.18415155]
[1747100715216,0.03509754,102290.0,102280.0,1.18415155]
[1747100715432,0.02532199,102290.0,102280.0,1.18415155]
[1747100715651,0.02532199,102290.0,102280.0,1.14296248]
[1747100715864,0.03509754,102290.0,102280.0,1.54296248]
[1747100716536,0.01554663,102290.0,102280.0,1.54296248]
[1747100716756,0.02532199,102290.0,102280.0,1.54296248]
[1747100716968,0.01554663,102290.0,102280.0,1.54296248]
[1747100717183,0.03509754,102290.0,102280.0,1.54296248]
[1747100717399,0.01554663,102290.0,102280.0,1.54296248]
[1747100717625,0.00014663,102290.0,102280.0,1.63881678]
[1747100717871,0.00014663,102290.0,102280.0,1.65335763]
[1747100718098,0.00014663,102290.0,102280.0,1.66865763]
[1747100718315,0.00014663,102290.0,102280.0,1.93781407]
[1747100718525,0.00014663,102290.0,102280.0,1.68525763]
[1747100719179,0.00014663,102290.0,102280.0,1.68425763]
[1747100719399,0.00014663,102290.0,102280.0,1.57380333]
[1747100719605,0.00014663,102290.0,102280.0,1.57280333]
[1747100720472,0.00014663,102290.0,102280.0,1.57580333]
[1747100721140,0.0315,102320.0,102310.0,0.5648058]
[1747100721366,0.04127259,102320.0,102310.0,1.36885654]
[1747100721584,0.05104546,102320.0,102310.0,1.36885654]
[1747100722044,0.05104546,102320.0,102310.0,1.86471084]
[1747100722476,0.05104527,102320.0,102310.0,1.86471084]
[1747100722940,0.05104527,102320.0,102310.0,1.36885654]
[1747100723148,0.05104527,102320.0,102310.0,1.36985654]
[1747100723611,0.05104527,102320.0,102310.0,1.14453074]
[1747100723612,0.2562842,102320.0,102310.0,1.14453074]
[1747100723829,0.24651142,102320.0,102310.0,0.8919743]
[1747100724049,0.24651142,102320.0,102310.0,1.08745861]
[1747100724233,0.24651142,102320.0,102310.0,1.10700694]
[1747100724442,0.24651142,102320.0,102310.0,1.11678096]
[1747100724686,0.24651142,102320.0,102310.0,0.8919743]
[1747100724873,0.24651142,102320.0,102310.0,0.001]
[1747100725092,0.25564274,102320.0,102310.0,0.001]
[1747100729954,0.23625843,102310.0,102300.0,0.65985517]
[1747100730157,0.24603235,102310.0,102300.0,0.75570947]
[1747100730476,0.24603235,102310.0,102300.0,0.95121289]
[1747100730690,0.24603235,102310.0,102300.0,0.97076293]
[1747100730944,0.29109524,102310.0,102300.0,0.95121289]
[1747100731120,0.28132132,102310.0,102300.0,0.5182943]
[1747100731395,0.28132132,102310.0,102300.0,0.75570947]
[1747100731620,0.24538975,102310.0,102300.0,0.96098786]
[1747100732000,0.24538975,102310.0,102300.0,0.97076274]
[1747100732212,0.04013132,102310.0,102300.0,1.24386846]
[1747100732425,0.03430477,102310.0,102300.0,1.24386846]
[1747100732633,0.0595764,102320.0,102310.0,0.23457981]
[1747100732841,0.0595764,102320.0,102310.0,0.92299055]
[1747100733252,0.06999083,102320.0,102310.0,0.67043411]
[1747100733605,0.06999073,102320.0,102310.0,0.67043411]
[1747100734269,0.26545659,102320.0,102310.0,0.64111282]
[1747100734477,0.30268745,102320.0,102310.0,0.66066076]
[1747100734690,0.24591113,102320.0,102310.0,0.66066057]
[1747100735117,0.24591113,102320.0,102310.0,0.0958543]
[1747100735322,0.24663235,102310.0,102300.0,1.20369327]
[1747100735526,0.0162,102310.0,102300.0,1.56187851]
[1747100735732,0.03973132,102320.0,102310.0,0.2248058]
[1747100735936,0.03973132,102320.0,102310.0,0.91321654]
[1747100735937,0.00913132,102320.0,102310.0,0.91321654]
[1747100736566,0.06081509,102330.0,102320.0,0.22478382]
[1747100736723,0.0707337,102330.0,102320.0,0.57319456]
[1747100736921,0.0316465,102330.0,102320.0,0.60436442]
[1747100737137,0.0001465,102330.0,102320.0,1.17052442]
[1747100737382,0.0001465,102330.0,102320.0,1.18506527]
[1747100737560,0.0001465,102330.0,102320.0,1.20156527]
[1747100738127,0.0001465,102330.0,102320.0,1.21766527]
[1747100738567,0.0001465,102330.0,102320.0,1.47022171]
[1747100738765,0.0001465,102330.0,102320.0,1.50199518]
[1747100739056,0.0001465,102330.0,102320.0,1.90199518]
[1747100739250,0.0001465,102330.0,102320.0,1.90299518]
[1747100739675,0.0001465,102330.0,102320.0,2.27349518]
[1747100739882,0.07039968,102360.0,102350.0,0.56471794]
[1747100740077,0.07039968,102360.0,102350.0,1.41460998]
[1747100740078,0.0153224,102360.0,102350.0,1.41460998]
[1747100740283,0.03485984,102360.0,102350.0,1.41460998]
[1747100740491,0.02509098,102360.0,102350.0,1.41460998]
[1747100740699,0.03485975,102360.0,102350.0,1.41460998]
[1747100741193,0.03485965,102360.0,102350.0,1.51301224]
[1747100741396,0.03485965,102360.0,102350.0,1.8542098]
[1747100741545,0.05439766,102360.0,102350.0,1.8542098]
[1747100741756,0.08599756,102360.0,102350.0,1.51401224]
[1747100741954,0.08599832,102360.0,102350.0,1.51401262]
[1747100742162,0.08599832,102360.0,102350.0,1.52378234]
[1747100742394,0.09576776,102360.0,102350.0,1.52378234]
[1747100742572,0.09576776,102360.0,102350.0,1.12378234]
[1747100742783,0.28138791,102360.0,102350.0,1.10424271]
[1747100742995,0.28138791,102360.0,102350.0,0.45296]
[1747100742996,0.31739258,102360.0,102350.0,0.45296]
[1747100744095,0.26185,102360.0,102350.0,0.45296]
[1747100744294,0.26185,102360.0,102350.0,0.001]
[1747100745270,0.26185,102360.0,102320.0,0.20523846]
[1747100745271,0.22660791,102350.0,102320.0,0.20523846]
[1747100745522,0.23641821,102330.0,102320.0,0.0958543]
[1747100745729,0.23641821,102330.0,102320.0,0.3219743]
[1747100746232,0.26983062,102330.0,102320.0,0.3219743]
[1747100746670,0.04097154,102330.0,102320.0,0.53698553]
[1747100746892,0.07028758,102330.0,102320.0,0.5565309]
[1747100747120,0.03524202,102340.0,102330.0,0.22476185]
[1747100747345,0.03534155,102340.0,102330.0,0.66081371]
[1747100747551,0.01954155,102340.0,102330.0,0.66081371]
[1747100747773,0.0315,102350.0,102340.0,0.21496902]
[1747100747982,0.07058052,102350.0,102340.0,0.320594]
[1747100748225,0.00976953,102350.0,102340.0,0.66079156]
[1747100748446,0.03418566,102360.0,102350.0,0.22471804]
[1747100748660,0.25888154,102360.0,102350.0,0.52715251]
[1747100748920,0.31815919,102360.0,102350.0,0.3219743]
[1747100749138,0.26204961,102360.0,102350.0,0.3219743]
[1747100749366,0.26204961,102360.0,102350.0,0.8868898]
[1747100749367,0.02509117,102360.0,102350.0,0.8868898]
[1747100749604,0.0153224,102360.0,102350.0,0.8868898]
[1747100749836,0.03485993,102360.0,102350.0,0.8868898]
[1747100750069,0.02509117,102360.0,102350.0,0.64254654]
[1747100750294,0.0153224,102360.0,102350.0,0.9827441]
[1747100751370,0.0153224,102360.0,102350.0,0.9837441]
[1747100751593,0.0153224,102360.0,102350.0,0.8878898]
[1747100752986,0.02509098,102360.0,102350.0,0.8878898]
[1747100753208,0.02509098,102360.0,102350.0,0.54769224]
[1747100753650,0.02509107,102360.0,102350.0,0.54769224]
[1747100753912,0.02509098,102360.0,102350.0,0.94769224]
[1747100754098,0.28058696,102360.0,102350.0,0.93792261]
[1747100754311,0.26104961,102360.0,102350.0,0.001]
[1747100755212,0.27013862,102360.0,102350.0,0.001]
[1747100756372,1.12485708,102360.0,102350.0,0.001]
[1747100756887,0.01954393,102330.0,102320.0,0.00960006]
[1747100757118,0.23653826,102320.0,102310.0,0.22608]
[1747100757333,0.23653826,102320.0,102310.0,0.33175458]
[1747100757546,0.23653826,102320.0,102310.0,0.67175458]
[1747100758451,0.23653826,102320.0,102310.0,0.67275458]
[1747100758671,0.23653826,102320.0,102310.0,0.33275458]
[1747100759334,0.23653826,102320.0,102310.0,0.0970008]
[1747100759556,0.23653826,102320.0,102310.0,0.0011465]
[1747100760040,0.67259012,102320.0,102310.0,0.0011465]
[1747100760273,0.65416686,102320.0,102310.0,0.0011465]
[1747100760763,1.00325045,102320.0,102310.0,0.0011465]
[1747100760996,1.00325045,102320.0,102260.0,0.64836]
[1747100760997,0.22489344,102270.0,102260.0,0.64836]
[1747100761245,0.21511617,102270.0,102260.0,0.53725851]
[1747100761468,0.22043861,102270.0,102260.0,0.32212093]
[1747100761725,0.27113223,102270.0,102260.0,0.32212093]
[1747100761957,0.27113223,102270.0,102260.0,0.00014663]
[1747100762181,0.01955483,102270.0,102260.0,0.32091664]
[1747100762423,0.01955483,102270.0,102260.0,0.6611142]
[1747100762646,0.23467138,102270.0,102260.0,0.31113832]
[1747100762886,0.21511655,102270.0,102260.0,0.10400093]
[1747100763124,0.28708396,102270.0,102260.0,0.10400093]
[1747100763354,0.28708396,102270.0,102260.0,0.09600093]
[1747100763596,0.24601655,102270.0,102260.0,0.10200093]
[1747100763893,0.24601655,102270.0,102260.0,0.10000093]
[1747100764126,0.24601655,102270.0,102260.0,0.10100093]
[1747100764583,0.24601655,102270.0,102260.0,0.00114663]
[1747100765433,0.24601655,102270.0,102260.0,0.30235971]
[1747100765863,0.03911041,102270.0,102260.0,0.32191683]
[1747100766073,0.03911022,102270.0,102260.0,0.34347357]
[1747100766288,0.01955473,102270.0,102260.0,0.68367113]
[1747100766508,0.03910965,102270.0,102260.0,0.68367113]
[1747100766921,0.03910965,102270.0,102260.0,0.09900093]
[1747100766922,0.24933833,102270.0,102260.0,0.09900093]
[1747100767144,0.27176087,102270.0,102260.0,0.00314663]
[1747100767371,0.24731646,102270.0,102260.0,0.20850532]
[1747100767574,0.24731646,102270.0,102260.0,0.21828393]
[1747100767805,0.24731646,102270.0,102260.0,0.22806244]
[1747100767806,0.05175569,102270.0,102260.0,0.22806244]
[1747100768026,0.04583219,102270.0,102260.0,0.33369506]
[1747100768246,0.23467195,102270.0,102260.0,0.31413823]
[1747100768886,0.27609969,102270.0,102260.0,0.09900093]
[1747100769096,0.29269969,102270.0,102260.0,0.00314663]
[1747100772037,0.29269969,102270.0,102260.0,0.00114663]
[1747100773181,0.95531399,102270.0,102260.0,0.00114663]
[1747100773381,1.29651155,102270.0,102260.0,0.00114663]
[1747100773731,0.95631399,102270.0,102260.0,0.00114663]
[1747100773946,0.24901674,102270.0,102260.0,0.00114663]
[1747100774383,0.24901674,102270.0,102260.0,0.31213851]
[1747100774384,0.23241674,102270.0,102260.0,0.31213851]
[1747100774596,0.21611674,102270.0,102260.0,0.09700093]
[1747100774812,0.2063388,102270.0,102260.0,0.29258082]
[1747100774952,0.03033315,102270.0,102260.0,0.31213832]
[1747100775166,0.25001299,102270.0,102260.0,0.30235971]
[1747100775367,0.21611646,102270.0,102260.0,0.30235981]
[1747100775568,0.21611646,102270.0,102260.0,0.32191702]
[1747100775788,0.21611646,102270.0,102260.0,0.30235981]
[1747100776001,0.20633871,102270.0,102260.0,0.09700093]
[1747100776411,0.001,102270.0,102260.0,0.6621142]
[1747100776614,0.04011003,102270.0,102260.0,0.6621142]
[1747100776812,0.21611664,102270.0,102260.0,0.32428093]
[1747100777055,0.24781664,102270.0,102260.0,0.00114663]
[1747100777469,0.01077756,102270.0,102260.0,0.30235962]
[1747100777670,0.01077756,102270.0,102260.0,0.32191655]
[1747100777671,0.001,102270.0,102260.0,0.32191655]
[1747100777879,0.04011098,102270.0,102260.0,0.32191674]
[1747100778601,0.23567175,102270.0,102260.0,0.32191674]
[1747100778803,0.25923847,102270.0,102260.0,0.09700093]
[1747100779009,0.24946053,102270.0,102260.0,0.09700093]
[1747100779934,0.28106053,102270.0,102260.0,0.00114663]
[1747100780789,0.2379388,102270.0,102260.0,0.00114663]
[1747100784073,1.01399066,102270.0,102260.0,0.00114663]
[1747100784288,1.24127066,102270.0,102260.0,0.00114663]
[1747100784500,1.25127066,102270.0,102260.0,0.00114663]
[1747100784923,1.25127066,102270.0,102260.0,0.00014663]
[1747100785145,1.57980496,102270.0,102260.0,0.00114663]
[1747100785779,1.57880496,102270.0,102260.0,0.00114663]
[1747100785991,1.57880496,102270.0,102260.0,0.00214663]
[1747100785992,1.0478988,102270.0,102260.0,0.00214663]
[1747100786448,0.8105788,102270.0,102260.0,0.00214663]
[1747100787653,0.81965919,102270.0,102260.0,0.00214663]
[1747100787857,0.59301919,102270.0,102260.0,0.00214663]
[1747100788428,0.66731058,102270.0,102260.0,0.00114663]
[1747100788635,0.33231058,102270.0,102260.0,0.00114663]
[1747100788838,0.23601919,102270.0,102260.0,0.21628402]
[1747100789052,0.22041919,102270.0,102260.0,0.00114663]
[1747100789259,0.21941919,102270.0,102260.0,0.00014663]
[1747100789685,0.22141919,102270.0,102260.0,0.00014663]
[1747100789885,0.26475567,102270.0,102260.0,0.00014663]
[1747100791601,0.29525567,102270.0,102260.0,0.00014663]
[1747100793306,0.25191919,102270.0,102260.0,0.00014663]
[1747100794134,0.7152844,102270.0,102260.0,0.00014663]
[1747100794602,1.38982525,102270.0,102260.0,0.00014663]
[1747100795026,1.38074486,102270.0,102260.0,0.00014663]
[1747100795244,1.37074486,102270.0,102260.0,0.00014663]
[1747100795634,1.47659916,102270.0,102260.0,0.00014663]
[1747100795893,1.04620401,102270.0,102260.0,0.00014663]
[1747100796091,0.72011215,102270.0,102260.0,0.00014663]
[1747100796980,0.72922097,102270.0,102260.0,0.00014663]
[1747100798047,0.50426097,102270.0,102260.0,0.00014663]
[1747100798522,1.31485368,102270.0,102260.0,0.00014663]
[1747100798733,1.41070798,102270.0,102260.0,0.00014663]
[1747100799797,1.40159916,102270.0,102260.0,0.00014663]
[1747100801361,1.39159916,102270.0,102260.0,0.00014663]
[1747100801574,1.40159916,102270.0,102260.0,0.00014663]
[1747100803995,1.16552645,102270.0,102260.0,0.00014663]
[1747100804264,1.15552645,102270.0,102260.0,0.00014663]
[1747100804481,1.49572401,102270.0,102260.0,0.00014663]
[1747100805806,0.61015215,102270.0,102260.0,0.00014663]
[1747100805992,0.25485215,102270.0,102260.0,0.00014663]
[1747100806247,0.36620645,102270.0,102260.0,0.00014663]
[1747100806467,0.25485215,102270.0,102260.0,0.00014663]
[1747100806685,0.24876221,102270.0,102260.0,0.00014663]
[1747100806906,0.04544244,102270.0,102260.0,0.24036234]
[1747100807115,0.05522038,102270.0,102260.0,0.24036234]
[1747100807323,0.24100398,102270.0,102260.0,0.22080541]
[1747100807580,0.23122652,102270.0,102260.0,0.01544663]
[1747100808010,0.03566527,102270.0,102260.0,0.33621664]
[1747100808219,0.0454433,102270.0,102260.0,0.35121683]
[1747100808428,0.23122661,102270.0,102260.0,0.09600093]
[1747100808640,0.23122661,102270.0,102260.0,0.10577992]
[1747100808855,0.23122661,102270.0,102260.0,0.11555881]
[1747100809064,0.22144886,102270.0,102260.0,0.09600093]
[1747100809277,0.22144886,102270.0,102260.0,0.09587545]
[1747100809950,0.2631483,102270.0,102260.0,0.09587545]
[1747100810203,0.22144886,102270.0,102260.0,2.115e-05]
[1747100811439,0.02588723,102270.0,102260.0,0.66098872]
[1747100811653,0.04544224,102270.0,102260.0,0.67728872]
[1747100811986,0.05522057,102270.0,102260.0,0.34241284]
[1747100812195,0.05522057,102270.0,102260.0,0.35219116]
[1747100812401,0.02866498,102270.0,102260.0,0.35219116]
[1747100812617,0.19554558,102280.0,102270.0,0.23151617]
[1747100812618,0.21509945,102280.0,102270.0,0.23151617]
[1747100812793,0.01955387,102280.0,102270.0,0.24129363]
[1747100813047,0.01955387,102280.0,102270.0,0.32737047]
[1747100813229,0.21509552,102280.0,102270.0,0.32737066]
[1747100813783,0.20631873,102280.0,102270.0,0.32737066]
[1747100814005,0.001,102280.0,102270.0,1.04312323]
[1747100814441,0.001,102280.0,102270.0,1.26908323]
[1747100815306,0.001,102280.0,102270.0,1.28362408]
[1747100815520,0.01888408,102310.0,102300.0,0.02932435]
[1747100815713,0.01888408,102310.0,102300.0,0.32068207]
[1747100815714,0.04820547,102310.0,102300.0,0.32068207]
[1747100815921,0.01888351,102310.0,102300.0,0.33618207]
[1747100816137,0.01888351,102310.0,102300.0,0.67637963]
[1747100816336,0.03843088,102310.0,102300.0,0.90133963]
[1747100816553,0.01411006,102310.0,102300.0,1.54088523]
[1747100816777,0.0338001,102310.0,102300.0,1.47943963]
[1747100816969,0.02669004,102310.0,102300.0,1.47943963]
[1747100817180,0.0412376,102310.0,102300.0,1.13824207]
[1747100817380,0.03646368,102310.0,102300.0,1.13824207]
[1747100817599,0.04623751,102310.0,102300.0,1.13824207]
[1747100817880,0.2570967,102310.0,102300.0,1.08769279]
[1747100818097,0.03646474,102310.0,102300.0,1.11701676]
[1747100818298,0.03446474,102310.0,102300.0,1.11701676]
[1747100818498,0.03546474,102310.0,102300.0,1.11701676]
[1747100818858,0.03046474,102310.0,102300.0,1.11701676]
[1747100819091,0.01091679,102310.0,102300.0,1.11801676]
[1747100819289,0.00114315,102310.0,102300.0,1.58646862]
[1747100820087,0.00114315,102310.0,102300.0,1.48961432]
[1747100820512,0.00114315,102310.0,102300.0,1.49161432]
[1747100820941,0.00114315,102310.0,102300.0,1.5015761]
[1747100821134,0.00114315,102310.0,102300.0,1.51611695]
[1747100821485,0.00014315,102310.0,102300.0,1.51611695]
[1747100821698,0.00014315,102310.0,102300.0,1.61297125]
[1747100822318,0.00014315,102310.0,102300.0,2.01097125]
[1747100822449,0.00014315,102310.0,102300.0,2.01497125]
[1747100822664,0.00014315,102310.0,102300.0,2.01897125]
[1747100822910,0.00977049,102340.0,102300.0,2.01101989]
[1747100823120,0.02931213,102340.0,102330.0,0.56495941]
[1747100823334,0.22474036,102340.0,102330.0,0.3010726]
[1747100823554,0.293636,102340.0,102330.0,0.3010726]
[1747100823762,0.293636,102340.0,102330.0,0.31084471]
[1747100823977,0.0195424,102340.0,102330.0,0.32061653]
[1747100824190,0.0195424,102340.0,102330.0,0.33038816]
[1747100824405,0.01954021,102350.0,102340.0,0.23451086]
[1747100824641,0.23463161,102350.0,102340.0,0.31082371]
[1747100824851,0.23463161,102350.0,102340.0,0.32059458]
[1747100825263,0.22486189,102350.0,102340.0,0.32059458]
[1747100825527,0.21509188,102350.0,102340.0,0.31082371]
[1747100825738,0.20632158,102350.0,102340.0,0.32059486]
[1747100826145,0.20632158,102350.0,102340.0,0.3108239]
[1747100826568,0.20732158,102350.0,102340.0,0.32059505]
[1747100828008,0.19755119,102350.0,102340.0,0.0958543]
[1747100828415,0.20519815,102340.0,102330.0,0.4]
[1747100828635,0.01954317,102330.0,102320.0,1.00652729]
[1747100828858,0.21499022,102330.0,102320.0,0.8776143]
[1747100829079,0.23009022,102330.0,102320.0,0.0958543]
[1747100829313,0.28764194,102330.0,102320.0,0.0958543]
[1747100829526,0.28764194,102330.0,102320.0,0.10562756]
[1747100829983,0.24509022,102330.0,102320.0,0.10862756]
[1747100830203,0.24509022,102330.0,102320.0,0.003]
[1747100831753,0.21499022,102330.0,102320.0,0.01277326]
[1747100831972,0.01954555,102320.0,102310.0,0.9050005]
[1747100832183,0.02931948,102320.0,102310.0,1.01062844]
[1747100832414,0.03909245,102320.0,102310.0,1.02040198]
[1747100832849,0.1954461,102330.0,102320.0,0.00977326]
[1747100833389,0.01954574,102320.0,102310.0,0.75751078]
[1747100833600,0.0293189,102320.0,102310.0,0.66165648]
[1747100834448,0.03909216,102320.0,102310.0,0.66165648]
[1747100834658,0.23455765,102320.0,102310.0,0.65088342]
[1747100834867,0.23455765,102320.0,102310.0,0.66065706]
[1747100834868,0.03909245,102320.0,102310.0,0.66065706]
[1747100835072,0.03909245,102320.0,102310.0,0.6704306]
[1747100835510,0.00977182,102330.0,102320.0,0.22478344]
[1747100835693,0.22400157,102340.0,102330.0,0.2052183]
[1747100835939,0.00977068,102340.0,102330.0,0.32061634]
[1747100836129,0.03908309,102340.0,102330.0,0.66081286]
[1747100836765,0.02931184,102340.0,102330.0,0.66081286]
[1747100836973,0.01954107,102340.0,102330.0,0.67581286]
[1747100837186,0.01894537,102350.0,102340.0,0.23451086]
[1747100837395,0.03848548,102350.0,102340.0,0.67056272]
[1747100837620,0.24366369,102350.0,102340.0,0.32059467]
[1747100837857,0.24366369,102350.0,102340.0,0.34013631]
[1747100838006,0.03848548,102350.0,102340.0,0.6803332]
[1747100838228,0.01894537,102350.0,102340.0,1.2575732]
[1747100838441,0.00917574,102350.0,102340.0,1.2738732]
[1747100838902,0.00014328,102350.0,102340.0,1.28841405]
[1747100839080,0.00014328,102350.0,102340.0,1.38426835]
[1747100839282,0.00114328,102350.0,102340.0,1.38426835]
[1747100839952,0.00114328,102350.0,102340.0,1.28841405]
[1747100840476,0.01091281,102350.0,102340.0,1.25571405]
[1747100840725,0.00114328,102350.0,102340.0,1.25571405]
[1747100840962,0.00114328,102350.0,102340.0,1.47651405]
[1747100841560,0.01022321,102350.0,102340.0,1.47651405]
[1747100841756,0.01022321,102350.0,102340.0,1.60466835]
[1747100843025,0.00922321,102350.0,102340.0,1.60466835]
[1747100843397,0.00922321,102350.0,102340.0,1.60566835]
[1747100843886,0.00922321,102350.0,102340.0,2.00566835]
[1747100844050,0.00922321,102350.0,102340.0,1.60566835]
[1747100844605,0.00014328,102350.0,102340.0,2.00466835]
[1747100845037,0.00014328,102350.0,102340.0,2.01266835]
[1747100849616,0.01369232,102360.0,102350.0,0.57945635]
[1747100849848,0.02287076,102360.0,102350.0,0.75552181]
[1747100850046,0.02652374,102360.0,102350.0,0.75552181]
[1747100850802,0.02652374,102360.0,102350.0,0.75752181]
[1747100851010,0.02652374,102360.0,102350.0,0.76052181]
[1747100851237,0.02652374,102360.0,102350.0,0.67231476]
[1747100852122,0.27385077,102360.0,102350.0,0.1008543]
[1747100852584,0.35251737,102360.0,102350.0,0.005]
[1747100853549,0.35251737,102360.0,102350.0,0.003]
[1747100853769,0.23729825,102340.0,102330.0,0.34]
[1747100853975,0.06141594,102330.0,102320.0,0.44554449]
[1747100854175,0.05164336,102330.0,102320.0,0.90094406]
[1747100854376,0.02617154,102330.0,102320.0,1.24129249]
[1747100854582,0.01411794,102330.0,102320.0,1.24129249]
[1747100854780,0.03366149,102330.0,102320.0,1.28716298]
[1747100855124,0.03366149,102330.0,102320.0,1.29116298]
[1747100855549,0.0043464,102330.0,102320.0,1.32100383]
[1747100855973,0.0043464,102330.0,102320.0,1.25983334]
[1747100856410,0.0043464,102330.0,102320.0,1.24529249]
[1747100856411,0.02388976,102330.0,102320.0,1.24529249]
[1747100856575,0.01411794,102330.0,102320.0,1.24929249]
[1747100856784,0.0043464,102330.0,102320.0,1.24929249]
[1747100857010,0.01411784,102330.0,102320.0,1.46973249]
[1747100857202,0.01411784,102330.0,102320.0,1.47970251]
[1747100857442,0.0043464,102330.0,102320.0,1.47970251]
[1747100857953,0.01411794,102330.0,102320.0,1.47970251]
[1747100858169,0.02388967,102330.0,102320.0,1.46973249]
[1747100858366,0.0043464,102330.0,102320.0,1.46973249]
[1747100859137,0.02388938,102330.0,102320.0,1.46973249]
[1747100859336,0.25063653,102330.0,102320.0,0.3244543]
[1747100859539,0.25063653,102330.0,102320.0,0.53946573]
[1747100859736,0.0043464,102330.0,102320.0,0.89935962]
[1747100859964,0.0043464,102330.0,102320.0,1.23935962]
[1747100860308,0.00977058,102340.0,102330.0,0.22474743]
[1747100860469,0.03504145,102340.0,102330.0,0.32060173]
[1747100860710,0.070491,102340.0,102330.0,0.32060173]
[1747100860915,0.0245784,102340.0,102330.0,0.75680446]
[1747100861265,0.01884889,102340.0,102330.0,0.75680446]
[1747100861501,0.03839053,102340.0,102330.0,0.75680446]
[1747100861746,0.03839053,102340.0,102330.0,0.41645603]
[1747100861964,0.02861957,102340.0,102330.0,0.32160173]
[1747100862191,0.0481614,102340.0,102330.0,0.32160173]
[1747100862413,0.0481613,102340.0,102330.0,0.32160173]
[1747100862642,0.04816121,102340.0,102330.0,0.32160173]
[1747100862869,0.05793227,102340.0,102330.0,0.32160173]
[1747100863296,0.05793293,102340.0,102330.0,0.32160173]
[1747100863485,0.0901336,102340.0,102330.0,0.32160173]
[1747100863618,0.2855606,102340.0,102330.0,0.32160183]
[1747100864842,0.08036225,102340.0,102330.0,0.33137346]
[1747100865252,0.0901335,102340.0,102330.0,0.33137346]
[1747100865675,0.0458127,102340.0,102330.0,0.33137346]
[1747100866159,0.05558385,102340.0,102330.0,0.33137346]
[1747100866643,0.0805551,102340.0,102330.0,0.33137346]
[1747100867162,0.01954164,102340.0,102330.0,0.33137346]
[1747100867401,0.0411702,102350.0,102340.0,0.22473989]
[1747100867612,0.24634802,102350.0,102340.0,0.31082351]
[1747100868297,0.0642417,102350.0,102340.0,0.32059428]
[1747100868501,0.26941991,102350.0,102340.0,0.32059428]
[1747100868650,0.26941991,102350.0,102340.0,0.3108237]
[1747100868989,0.04261095,102350.0,102340.0,0.33036534]
[1747100869140,0.05238105,102350.0,102340.0,0.33036534]
[1747100869343,0.01330159,102350.0,102340.0,0.67036534]
[1747100869550,0.01330159,102350.0,102340.0,1.23135377]
[1747100869752,0.02307122,102350.0,102340.0,1.23135377]
[1747100869959,0.03284094,102350.0,102340.0,1.23135377]
[1747100870177,0.02374826,102350.0,102340.0,1.23135377]
[1747100870531,0.01397854,102350.0,102340.0,1.23135377]
[1747100870746,0.00420891,102350.0,102340.0,0.89100534]
[1747100871024,0.00420891,102350.0,102340.0,1.24589462]
[1747100871228,0.00420891,102350.0,102340.0,1.35754892]
[1747100871406,0.00420891,102350.0,102340.0,1.34174892]
[1747100872200,0.00420891,102350.0,102340.0,1.74174892]
[1747100872595,0.00420891,102350.0,102340.0,1.74374892]
[1747100872813,0.01397844,102350.0,102340.0,1.74374892]
[1747100873244,0.00420891,102350.0,102340.0,1.56258958]
[1747100873446,0.00420891,102350.0,102340.0,1.57788958]
[1747100873947,0.00420891,102350.0,102340.0,1.56258958]
[1747100880149,0.00420891,102350.0,102340.0,1.31054619]
[1747100880359,0.00420891,102350.0,102340.0,1.56258958]
[1747100880977,0.00420891,102350.0,102340.0,1.65844388]
[1747100881160,0.00420891,102350.0,102340.0,1.34194958]
[1747100881373,0.00420891,102350.0,102340.0,1.78290958]
[1747100881800,0.00420891,102350.0,102340.0,1.79850958]